[Event "November 21 Early 2023"]
[Site "https://www.chess.com"]
[Date "2023.11.21"]
[Round "8"]
[White "Nekoo04"]
[Black "PoXerStar"]
[Result "1-0"]
[Board "155"]
[TimeControl "180+1"]
[WhiteElo "2279"]
[BlackElo "2409"]
[WhiteClock "0:00:10"]
[BlackClock "0:00:00"]

1. d4 {[%clk 0:03:00]}  d6 {[%clk 0:02:29]} 2. e4 {[%clk 0:02:59]}  e5 {[%clk 0:02:29]} 3. dxe5 {[%clk 0:02:52]}  dxe5 {[%clk 0:02:29]} 4. Qxd8+ {[%clk 0:02:52]}  Kxd8 {[%clk 0:02:07]} 5. Nc3 {[%clk 0:02:52]}  Be6 {[%clk 0:02:01]} 6. b3 {[%clk 0:02:43]}  Bb4 {[%clk 0:01:56]} 7. Bb2 {[%clk 0:02:43]}  c6 {[%clk 0:01:56]} 8. O-O-O+ {[%clk 0:02:43]}  Kc7 {[%clk 0:01:56]} 9. f4 {[%clk 0:02:36]}  exf4 {[%clk 0:01:43]} 10. Nce2 {[%clk 0:02:20]}  Nf6 {[%clk 0:01:42]} 11. Nxf4 {[%clk 0:02:18]}  Nbd7 {[%clk 0:01:36]} 12. Nxe6+ {[%clk 0:02:00]}  fxe6 {[%clk 0:01:37]} 13. Bd3 {[%clk 0:02:01]}  Ng4 {[%clk 0:01:26]} 14. Nh3 {[%clk 0:01:56]}  Nge5 {[%clk 0:01:08]} 15. Be2 {[%clk 0:01:41]}  h6 {[%clk 0:01:01]} 16. Nf4 {[%clk 0:01:39]}  Rae8 {[%clk 0:00:59]} 17. Bh5 {[%clk 0:01:36]}  Re7 {[%clk 0:00:57]} 18. Rhf1 {[%clk 0:01:18]}  Bc5 {[%clk 0:00:44]} 19. Kb1 {[%clk 0:01:11]}  Be3 {[%clk 0:00:39]} 20. Nd3 {[%clk 0:01:10]}  Nxd3 {[%clk 0:00:32]} 21. Rxd3 {[%clk 0:01:11]}  Bg5 {[%clk 0:00:30]} 22. Rf7 {[%clk 0:01:05]}  Rxf7 {[%clk 0:00:16]} 23. Bxf7 {[%clk 0:01:06]}  Bf6 {[%clk 0:00:17]} 24. Bxf6 {[%clk 0:00:34]}  gxf6 {[%clk 0:00:17]} 25. Rf3 {[%clk 0:00:20]}  Kd6 {[%clk 0:00:16]} 26. Bh5 {[%clk 0:00:14]}  Rg8 {[%clk 0:00:15]} 27. g3 {[%clk 0:00:14]}  Ke7 {[%clk 0:00:12]} 28. a4 {[%clk 0:00:13]}  Rg5 {[%clk 0:00:10]} 29. g4 {[%clk 0:00:12]}  Ne5 {[%clk 0:00:09]} 30. Rg3 {[%clk 0:00:12]}  a5 {[%clk 0:00:04]} 31. Kb2 {[%clk 0:00:12]}  b6 {[%clk 0:00:03]} 32. h3 {[%clk 0:00:10]}  Rg8 {[%clk 0:00:01]} 33. c3 {[%clk 0:00:10]}  Rd8 {[%clk 0:00:00]} 34. Kc2 {[%clk 0:00:10]} 1-0

[Event "November 21 Early 2023"]
[Site "https://www.chess.com"]
[Date "2023.11.21"]
[Round "8"]
[White "Witty_Alien"]
[Black "Mushini Ajay"]
[Result "1-0"]
[Board "156"]
[TimeControl "180+1"]
[BlackFideId "35066188"]
[WhiteElo "2279"]
[BlackElo "2162"]
[BlackTeam "IND"]
[WhiteClock "0:00:06"]
[BlackClock "0:00:29"]

1. e4 {[%clk 0:03:00]}  c5 {[%clk 0:02:58]} 2. Nf3 {[%clk 0:02:58]}  d6 {[%clk 0:02:58]} 3. d4 {[%clk 0:02:57]}  cxd4 {[%clk 0:02:59]} 4. Nxd4 {[%clk 0:02:58]}  Nf6 {[%clk 0:03:00]} 5. Nc3 {[%clk 0:02:58]}  g6 {[%clk 0:03:00]} 6. Be2 {[%clk 0:02:44]}  Bg7 {[%clk 0:02:59]} 7. O-O {[%clk 0:02:44]}  O-O {[%clk 0:02:26]} 8. f4 {[%clk 0:02:19]}  Nc6 {[%clk 0:02:25]} 9. Kh1 {[%clk 0:02:18]}  Nxd4 {[%clk 0:02:19]} 10. Qxd4 {[%clk 0:02:18]}  Be6 {[%clk 0:02:17]} 11. f5 {[%clk 0:02:07]}  Bd7 {[%clk 0:02:09]} 12. Bc4 {[%clk 0:01:40]}  a6 {[%clk 0:02:04]} 13. Bb3 {[%clk 0:01:37]}  Rc8 {[%clk 0:02:01]} 14. Bg5 {[%clk 0:01:22]}  Qc7 {[%clk 0:01:40]} 15. fxg6 {[%clk 0:01:16]}  hxg6 {[%clk 0:01:41]} 16. Bxf6 {[%clk 0:01:06]}  exf6 {[%clk 0:01:20]} 17. Nd5 {[%clk 0:00:53]}  Qd8 {[%clk 0:01:14]} 18. Nxf6+ {[%clk 0:00:31]}  Kh8 {[%clk 0:01:06]} 19. e5 {[%clk 0:00:26]}  g5 {[%clk 0:00:49]} 20. Rf4 {[%clk 0:00:12]}  Bh6 {[%clk 0:00:29]} 21. Qe4 {[%clk 0:00:06]} 1-0

[Event "November 21 Early 2023"]
[Site "https://www.chess.com"]
[Date "2023.11.21"]
[Round "8"]
[White "Tsyhanchuk, Stanislav"]
[Black "Nissinen, Niilo Man"]
[Result "0-1"]
[Board "157"]
[TimeControl "180+1"]
[WhiteFideId "13505130"]
[BlackFideId "30950767"]
[WhiteElo "2173"]
[BlackElo "1854"]
[WhiteTeam "BLR"]
[BlackTeam "HKG"]
[WhiteClock "0:01:02"]
[BlackClock "0:00:54"]

1. e4 {[%clk 0:03:00]}  e5 {[%clk 0:02:59]} 2. Nf3 {[%clk 0:03:00]}  Nc6 {[%clk 0:02:59]} 3. Bc4 {[%clk 0:03:01]}  Bc5 {[%clk 0:02:59]} 4. c3 {[%clk 0:03:01]}  Nf6 {[%clk 0:02:57]} 5. d3 {[%clk 0:03:02]}  d6 {[%clk 0:02:56]} 6. O-O {[%clk 0:03:02]}  h6 {[%clk 0:02:56]} 7. b4 {[%clk 0:03:02]}  Bb6 {[%clk 0:02:55]} 8. Nbd2 {[%clk 0:03:02]}  O-O {[%clk 0:02:55]} 9. h3 {[%clk 0:03:01]}  Ne7 {[%clk 0:02:48]} 10. Re1 {[%clk 0:03:01]}  c6 {[%clk 0:02:41]} 11. Bb3 {[%clk 0:02:58]}  a5 {[%clk 0:02:37]} 12. Bb2 {[%clk 0:02:47]}  Ng6 {[%clk 0:02:29]} 13. bxa5 {[%clk 0:02:29]}  Bxa5 {[%clk 0:02:25]} 14. d4 {[%clk 0:02:29]}  Bc7 {[%clk 0:02:16]} 15. a4 {[%clk 0:02:12]}  Nf4 {[%clk 0:02:15]} 16. dxe5 {[%clk 0:02:05]}  dxe5 {[%clk 0:02:14]} 17. Nc4 {[%clk 0:02:01]}  Nd3 {[%clk 0:01:58]} 18. Ba3 {[%clk 0:01:57]}  Nxe1 {[%clk 0:01:40]} 19. Bxf8 {[%clk 0:01:53]}  Nxf3+ {[%clk 0:01:40]} 20. Qxf3 {[%clk 0:01:52]}  Qxf8 {[%clk 0:01:40]} 21. Ne3 {[%clk 0:01:49]}  b5 {[%clk 0:01:36]} 22. Nf5 {[%clk 0:01:36]}  bxa4 {[%clk 0:01:32]} 23. Ba2 {[%clk 0:01:36]}  Bb6 {[%clk 0:01:11]} 24. Rd1 {[%clk 0:01:32]}  Bxf5 {[%clk 0:01:10]} 25. Qxf5 {[%clk 0:01:30]}  Rd8 {[%clk 0:01:10]} 26. Rb1 {[%clk 0:01:29]}  Qc5 {[%clk 0:01:06]} 27. Kh2 {[%clk 0:01:25]}  Qxf2 {[%clk 0:01:04]} 28. Qxf2 {[%clk 0:01:07]}  Bxf2 {[%clk 0:01:05]} 29. Rb7 {[%clk 0:01:03]}  Rd7 {[%clk 0:00:56]} 30. Rb8+ {[%clk 0:01:04]}  Kh7 {[%clk 0:00:56]} 31. Ra8 {[%clk 0:01:04]}  Nxe4 {[%clk 0:00:52]} 32. Rxa4 {[%clk 0:01:04]}  Bg3+ {[%clk 0:00:53]} 33. Kg1 {[%clk 0:01:02]}  Rd1# {[%clk 0:00:54]} 0-1

[Event "November 21 Early 2023"]
[Site "https://www.chess.com"]
[Date "2023.11.21"]
[Round "8"]
[White "Martin, Lewis"]
[Black "Kotepalli, Sai Nirupama"]
[Result "1-0"]
[Board "158"]
[TimeControl "180+1"]
[WhiteFideId "410551"]
[BlackFideId "5039444"]
[WhiteElo "2145"]
[BlackElo "2379"]
[WhiteTeam "ENG"]
[BlackTeam "IND"]
[WhiteClock "0:01:07"]
[BlackClock "0:00:00"]

1. c4 {[%clk 0:03:00]}  e5 {[%clk 0:02:50]} 2. g3 {[%clk 0:03:00]}  Nc6 {[%clk 0:02:48]} 3. Nc3 {[%clk 0:02:59]}  Nf6 {[%clk 0:02:41]} 4. Bg2 {[%clk 0:02:56]}  Bc5 {[%clk 0:02:37]} 5. Nf3 {[%clk 0:02:53]}  O-O {[%clk 0:02:36]} 6. O-O {[%clk 0:02:47]}  d6 {[%clk 0:02:35]} 7. e3 {[%clk 0:02:42]}  Bg4 {[%clk 0:02:26]} 8. a3 {[%clk 0:02:38]}  a5 {[%clk 0:02:20]} 9. h3 {[%clk 0:02:38]}  Bh5 {[%clk 0:01:54]} 10. g4 {[%clk 0:02:35]}  Bg6 {[%clk 0:01:53]} 11. d4 {[%clk 0:02:36]}  exd4 {[%clk 0:01:53]} 12. exd4 {[%clk 0:02:37]}  Bb6 {[%clk 0:01:53]} 13. Bg5 {[%clk 0:02:30]}  h6 {[%clk 0:01:31]} 14. Bh4 {[%clk 0:02:28]}  Qd7 {[%clk 0:01:26]} 15. Bxf6 {[%clk 0:02:27]}  gxf6 {[%clk 0:01:27]} 16. Nd5 {[%clk 0:02:23]}  Kg7 {[%clk 0:01:27]} 17. Nxb6 {[%clk 0:02:17]}  cxb6 {[%clk 0:01:26]} 18. Qd2 {[%clk 0:02:12]}  Rac8 {[%clk 0:01:06]} 19. Nh4 {[%clk 0:02:09]}  Ne7 {[%clk 0:01:03]} 20. b3 {[%clk 0:02:01]}  a4 {[%clk 0:00:51]} 21. Qb4 {[%clk 0:01:56]}  axb3 {[%clk 0:00:38]} 22. Qxb3 {[%clk 0:01:55]}  Qc7 {[%clk 0:00:34]} 23. Rac1 {[%clk 0:01:54]}  Nc6 {[%clk 0:00:31]} 24. Qc3 {[%clk 0:01:51]}  Na5 {[%clk 0:00:26]} 25. Bd5 {[%clk 0:01:46]}  Rfe8 {[%clk 0:00:20]} 26. f4 {[%clk 0:01:44]}  Be4 {[%clk 0:00:18]} 27. Bxe4 {[%clk 0:01:33]}  Rxe4 {[%clk 0:00:19]} 28. Qd3 {[%clk 0:01:33]}  Rce8 {[%clk 0:00:18]} 29. Nf5+ {[%clk 0:01:22]}  Kh7 {[%clk 0:00:17]} 30. Ng3 {[%clk 0:01:22]}  f5 {[%clk 0:00:14]} 31. Nxf5 {[%clk 0:01:19]}  Kh8 {[%clk 0:00:10]} 32. c5 {[%clk 0:01:08]}  dxc5 {[%clk 0:00:08]} 33. dxc5 {[%clk 0:01:08]}  bxc5 {[%clk 0:00:05]} 34. Qc3+ {[%clk 0:01:07]}  f6 {[%clk 0:00:00]} 35. Qxf6+ {[%clk 0:01:07]} 1-0

[Event "November 21 Early 2023"]
[Site "https://www.chess.com"]
[Date "2023.11.21"]
[Round "8"]
[White "Buchenau, Frank"]
[Black "Andersson, Bjorn 1971"]
[Result "1-0"]
[Board "159"]
[TimeControl "180+1"]
[WhiteFideId "4604350"]
[BlackFideId "1702114"]
[WhiteElo "2157"]
[BlackElo "2172"]
[WhiteTeam "GER"]
[BlackTeam "SWE"]
[WhiteClock "0:01:30"]
[BlackClock "0:02:39"]

1. e4 {[%clk 0:02:59]}  c5 {[%clk 0:03:00]} 2. Nf3 {[%clk 0:02:58]}  Nc6 {[%clk 0:03:01]} 3. Bb5 {[%clk 0:02:56]}  e6 {[%clk 0:03:01]} 4. Bxc6 {[%clk 0:02:55]}  bxc6 {[%clk 0:03:02]} 5. d3 {[%clk 0:02:55]}  Ne7 {[%clk 0:03:02]} 6. Qe2 {[%clk 0:02:55]}  Ng6 {[%clk 0:03:03]} 7. h4 {[%clk 0:02:52]}  h5 {[%clk 0:03:02]} 8. e5 {[%clk 0:02:51]}  Be7 {[%clk 0:03:02]} 9. Qe4 {[%clk 0:02:50]}  Rb8 {[%clk 0:02:56]} 10. Na3 {[%clk 0:02:39]}  Rb4 {[%clk 0:02:53]} 11. Nc4 {[%clk 0:02:30]}  Ba6 {[%clk 0:02:51]} 12. a3 {[%clk 0:02:13]}  Bxc4 {[%clk 0:02:51]} 13. axb4 {[%clk 0:02:10]}  Bd5 {[%clk 0:02:51]} 14. Qe2 {[%clk 0:02:01]}  cxb4 {[%clk 0:02:49]} 15. Rxa7 {[%clk 0:01:57]}  Nxh4 {[%clk 0:02:48]} 16. Nxh4 {[%clk 0:01:53]}  Bxh4 {[%clk 0:02:48]} 17. Rxh4 {[%clk 0:01:48]}  Qxh4 {[%clk 0:02:46]} 18. Ra8+ {[%clk 0:01:48]}  Ke7 {[%clk 0:02:45]} 19. Rxh8 {[%clk 0:01:47]}  Bxg2 {[%clk 0:02:45]} 20. Qxh5 {[%clk 0:01:32]}  Qd4 {[%clk 0:02:40]} 21. Qg5+ {[%clk 0:01:30]}  f6 {[%clk 0:02:39]} 22. Qxg7# {[%clk 0:01:30]} 1-0

[Event "November 21 Early 2023"]
[Site "https://www.chess.com"]
[Date "2023.11.21"]
[Round "8"]
[White "Maect19"]
[Black "Osmonbekov, Talaibek"]
[Result "1-0"]
[Board "165"]
[TimeControl "180+1"]
[BlackFideId "2017253"]
[WhiteElo "2325"]
[BlackElo "2135"]
[BlackTeam "USA"]
[WhiteClock "0:00:22"]
[BlackClock "0:00:05"]

1. d4 {[%clk 0:03:00]}  e6 {[%clk 0:02:58]} 2. Nf3 {[%clk 0:03:00]}  f5 {[%clk 0:02:58]} 3. e3 {[%clk 0:02:57]}  Nf6 {[%clk 0:02:58]} 4. b3 {[%clk 0:02:56]}  b6 {[%clk 0:02:58]} 5. Bb2 {[%clk 0:02:57]}  Bb7 {[%clk 0:02:59]} 6. Bd3 {[%clk 0:02:56]}  a5 {[%clk 0:02:57]} 7. Nbd2 {[%clk 0:02:57]}  a4 {[%clk 0:02:56]} 8. c4 {[%clk 0:02:51]}  Bd6 {[%clk 0:02:43]} 9. O-O {[%clk 0:02:45]}  O-O {[%clk 0:02:42]} 10. Qc2 {[%clk 0:02:45]}  Na6 {[%clk 0:02:37]} 11. e4 {[%clk 0:02:42]}  Nb4 {[%clk 0:02:36]} 12. Qc3 {[%clk 0:02:35]}  Nxd3 {[%clk 0:02:31]} 13. e5 {[%clk 0:02:34]}  Nxb2 {[%clk 0:02:18]} 14. Qxb2 {[%clk 0:02:30]}  Bb4 {[%clk 0:02:03]} 15. exf6 {[%clk 0:02:24]}  a3 {[%clk 0:01:58]} 16. Qc2 {[%clk 0:02:19]}  Qxf6 {[%clk 0:01:57]} 17. Ne5 {[%clk 0:02:15]}  d6 {[%clk 0:01:42]} 18. Nef3 {[%clk 0:02:06]}  Qg6 {[%clk 0:01:39]} 19. Ne1 {[%clk 0:01:50]}  e5 {[%clk 0:01:32]} 20. d5 {[%clk 0:01:49]}  Rae8 {[%clk 0:01:26]} 21. Ndf3 {[%clk 0:01:35]}  Bc5 {[%clk 0:01:18]} 22. Qc3 {[%clk 0:01:23]}  f4 {[%clk 0:01:12]} 23. b4 {[%clk 0:01:21]}  Bd4 {[%clk 0:00:47]} 24. Nxd4 {[%clk 0:01:19]}  exd4 {[%clk 0:00:47]} 25. Qxd4 {[%clk 0:01:17]}  Re4 {[%clk 0:00:44]} 26. Qd3 {[%clk 0:01:17]}  Rfe8 {[%clk 0:00:34]} 27. Nc2 {[%clk 0:01:10]}  Ba6 {[%clk 0:00:29]} 28. Nxa3 {[%clk 0:01:03]}  Re2 {[%clk 0:00:15]} 29. Qxg6 {[%clk 0:01:01]}  hxg6 {[%clk 0:00:16]} 30. b5 {[%clk 0:00:59]}  Bc8 {[%clk 0:00:16]} 31. Rac1 {[%clk 0:00:53]}  Bf5 {[%clk 0:00:16]} 32. Nb1 {[%clk 0:00:52]}  Rxa2 {[%clk 0:00:14]} 33. Nc3 {[%clk 0:00:52]}  Rd2 {[%clk 0:00:13]} 34. Rfd1 {[%clk 0:00:49]}  Rxd1+ {[%clk 0:00:12]} 35. Rxd1 {[%clk 0:00:50]}  Ra8 {[%clk 0:00:11]} 36. Ne2 {[%clk 0:00:48]}  g5 {[%clk 0:00:11]} 37. Nd4 {[%clk 0:00:48]}  Bd7 {[%clk 0:00:11]} 38. g3 {[%clk 0:00:45]}  Kf7 {[%clk 0:00:10]} 39. Re1 {[%clk 0:00:44]}  Ra4 {[%clk 0:00:09]} 40. Rc1 {[%clk 0:00:44]}  Ra2 {[%clk 0:00:09]} 41. Nf3 {[%clk 0:00:43]}  Kf6 {[%clk 0:00:08]} 42. h4 {[%clk 0:00:42]}  g4 {[%clk 0:00:08]} 43. Ng5 {[%clk 0:00:42]}  f3 {[%clk 0:00:08]} 44. Re1 {[%clk 0:00:39]}  Rc2 {[%clk 0:00:08]} 45. Nh7+ {[%clk 0:00:34]}  Kf7 {[%clk 0:00:07]} 46. Ng5+ {[%clk 0:00:34]}  Kf6 {[%clk 0:00:07]} 47. Nh7+ {[%clk 0:00:20]}  Kf7 {[%clk 0:00:07]} 48. Ng5+ {[%clk 0:00:18]}  Kf8 {[%clk 0:00:08]} 49. Re4 {[%clk 0:00:18]}  Bf5 {[%clk 0:00:06]} 50. Rf4 {[%clk 0:00:18]}  g6 {[%clk 0:00:06]} 51. Ne6+ {[%clk 0:00:18]}  Ke7 {[%clk 0:00:05]} 52. Nd4 {[%clk 0:00:18]}  Rxc4 {[%clk 0:00:05]} 53. Nxf5+ {[%clk 0:00:17]}  gxf5 {[%clk 0:00:05]} 54. Rxc4 {[%clk 0:00:17]}  Kf6 {[%clk 0:00:05]} 55. Rxc7 {[%clk 0:00:17]}  Ke5 {[%clk 0:00:06]} 56. Rc6 {[%clk 0:00:18]}  Kxd5 {[%clk 0:00:07]} 57. Rxb6 {[%clk 0:00:18]}  Kc5 {[%clk 0:00:07]} 58. Rc6+ {[%clk 0:00:19]}  Kxb5 {[%clk 0:00:07]} 59. Rxd6 {[%clk 0:00:20]}  Kc4 {[%clk 0:00:08]} 60. Rf6 {[%clk 0:00:20]}  Kd4 {[%clk 0:00:08]} 61. Rxf5 {[%clk 0:00:21]}  Kd3 {[%clk 0:00:08]} 62. Rf4 {[%clk 0:00:21]}  Ke2 {[%clk 0:00:08]} 63. h5 {[%clk 0:00:21]}  Kd3 {[%clk 0:00:07]} 64. h6 {[%clk 0:00:22]}  Ke2 {[%clk 0:00:05]} 65. h7 {[%clk 0:00:22]} 1-0

[Event "November 21 Early 2023"]
[Site "https://www.chess.com"]
[Date "2023.11.21"]
[Round "8"]
[White "Zivic, Dragan"]
[Black "kingapolak"]
[Result "1-0"]
[Board "166"]
[TimeControl "180+1"]
[WhiteFideId "904740"]
[WhiteElo "2073"]
[BlackElo "2189"]
[WhiteTeam "SRB"]
[WhiteClock "0:00:18"]
[BlackClock "0:00:01"]

1. c4 {[%clk 0:02:53]}  Nf6 {[%clk 0:02:57]} 2. Nc3 {[%clk 0:02:52]}  g6 {[%clk 0:02:58]} 3. d4 {[%clk 0:02:52]}  Bg7 {[%clk 0:02:58]} 4. e4 {[%clk 0:02:52]}  d6 {[%clk 0:02:59]} 5. h3 {[%clk 0:02:52]}  O-O {[%clk 0:02:54]} 6. Be3 {[%clk 0:02:52]}  e5 {[%clk 0:02:53]} 7. d5 {[%clk 0:02:52]}  a5 {[%clk 0:02:46]} 8. g4 {[%clk 0:02:51]}  Na6 {[%clk 0:02:46]} 9. Nge2 {[%clk 0:02:51]}  Nc5 {[%clk 0:02:46]} 10. Ng3 {[%clk 0:02:51]}  c6 {[%clk 0:02:42]} 11. Be2 {[%clk 0:02:46]}  cxd5 {[%clk 0:02:41]} 12. cxd5 {[%clk 0:02:46]}  Bd7 {[%clk 0:02:32]} 13. h4 {[%clk 0:02:43]}  b5 {[%clk 0:02:31]} 14. g5 {[%clk 0:02:39]}  Ne8 {[%clk 0:02:28]} 15. Rc1 {[%clk 0:02:37]}  b4 {[%clk 0:02:27]} 16. Nb1 {[%clk 0:02:37]}  Rc8 {[%clk 0:02:20]} 17. Nd2 {[%clk 0:02:35]}  f5 {[%clk 0:02:12]} 18. gxf6 {[%clk 0:02:31]}  Nxf6 {[%clk 0:02:12]} 19. h5 {[%clk 0:02:31]}  gxh5 {[%clk 0:01:55]} 20. Nxh5 {[%clk 0:02:26]}  Nxh5 {[%clk 0:01:52]} 21. Rxh5 {[%clk 0:02:24]}  Qf6 {[%clk 0:01:46]} 22. Nc4 {[%clk 0:02:13]}  Nxe4 {[%clk 0:01:38]} 23. Nb6 {[%clk 0:01:42]}  Rxc1 {[%clk 0:01:35]} 24. Qxc1 {[%clk 0:01:43]}  Be8 {[%clk 0:01:18]} 25. Rh1 {[%clk 0:01:39]}  Bg6 {[%clk 0:01:06]} 26. Nd7 {[%clk 0:01:34]}  Qf7 {[%clk 0:01:03]} 27. Nxf8 {[%clk 0:01:34]}  Bxf8 {[%clk 0:01:03]} 28. Qc4 {[%clk 0:01:31]}  Qf5 {[%clk 0:00:49]} 29. Bd3 {[%clk 0:01:28]}  Qg4 {[%clk 0:00:48]} 30. Rf1 {[%clk 0:00:56]}  Qf3 {[%clk 0:00:35]} 31. Be2 {[%clk 0:00:55]}  Qf5 {[%clk 0:00:32]} 32. Bd3 {[%clk 0:00:53]}  Qf3 {[%clk 0:00:31]} 33. Be2 {[%clk 0:00:51]}  Qf5 {[%clk 0:00:32]} 34. Rg1 {[%clk 0:00:48]}  Nf6 {[%clk 0:00:19]} 35. Bd3 {[%clk 0:00:41]}  e4 {[%clk 0:00:20]} 36. Be2 {[%clk 0:00:40]}  Nxd5 {[%clk 0:00:18]} 37. Qb3 {[%clk 0:00:36]}  Kh8 {[%clk 0:00:17]} 38. Bc4 {[%clk 0:00:34]}  Nxe3 {[%clk 0:00:16]} 39. Qxe3 {[%clk 0:00:34]}  Bg7 {[%clk 0:00:15]} 40. Qb6 {[%clk 0:00:28]}  h6 {[%clk 0:00:14]} 41. Qd8+ {[%clk 0:00:28]}  Bf8 {[%clk 0:00:12]} 42. Rxg6 {[%clk 0:00:20]}  e3 {[%clk 0:00:08]} 43. Qf6+ {[%clk 0:00:18]}  Qxf6 {[%clk 0:00:08]} 44. Rxf6 {[%clk 0:00:19]}  exf2+ {[%clk 0:00:09]} 45. Kxf2 {[%clk 0:00:19]}  Bg7 {[%clk 0:00:10]} 46. Rf5 {[%clk 0:00:20]}  Bd4+ {[%clk 0:00:10]} 47. Kf3 {[%clk 0:00:19]}  Bxb2 {[%clk 0:00:11]} 48. Rxa5 {[%clk 0:00:19]}  Bc3 {[%clk 0:00:11]} 49. Rd5 {[%clk 0:00:19]}  Be5 {[%clk 0:00:10]} 50. Rb5 {[%clk 0:00:19]}  Bc3 {[%clk 0:00:09]} 51. Rb6 {[%clk 0:00:19]}  Be5 {[%clk 0:00:09]} 52. Rb7 {[%clk 0:00:19]}  Bc3 {[%clk 0:00:08]} 53. Kg4 {[%clk 0:00:19]}  d5 {[%clk 0:00:05]} 54. Bxd5 {[%clk 0:00:19]}  b3 {[%clk 0:00:05]} 55. Bxb3 {[%clk 0:00:19]}  h5+ {[%clk 0:00:05]} 56. Kxh5 {[%clk 0:00:19]}  Bb4 {[%clk 0:00:04]} 57. Kg6 {[%clk 0:00:18]}  Be7 {[%clk 0:00:03]} 58. Rb8+ {[%clk 0:00:18]}  Bd8 {[%clk 0:00:01]} 59. Rxd8# {[%clk 0:00:18]} 1-0

[Event "November 21 Early 2023"]
[Site "https://www.chess.com"]
[Date "2023.11.21"]
[Round "8"]
[White "udithj22"]
[Black "rikchessmx"]
[Result "1-0"]
[Board "169"]
[TimeControl "180+1"]
[WhiteElo "2118"]
[BlackElo "2322"]
[WhiteClock "0:01:22"]
[BlackClock "0:01:47"]

1. d4 {[%clk 0:02:47]}  d5 {[%clk 0:02:53]} 2. Bf4 {[%clk 0:02:45]}  e6 {[%clk 0:02:53]} 3. e3 {[%clk 0:02:45]}  Bd6 {[%clk 0:02:53]} 4. Qg4 {[%clk 0:02:44]}  Bxf4 {[%clk 0:02:49]} 5. Qxg7 {[%clk 0:02:44]}  Qf6 {[%clk 0:02:47]} 6. Qxf6 {[%clk 0:02:44]}  Nxf6 {[%clk 0:02:47]} 7. exf4 {[%clk 0:02:45]}  Nc6 {[%clk 0:02:48]} 8. Nf3 {[%clk 0:02:45]}  Nb4 {[%clk 0:02:47]} 9. Na3 {[%clk 0:02:36]}  a6 {[%clk 0:02:45]} 10. c3 {[%clk 0:02:36]}  Nc6 {[%clk 0:02:44]} 11. Bd3 {[%clk 0:02:35]}  h5 {[%clk 0:02:44]} 12. h4 {[%clk 0:02:34]}  Bd7 {[%clk 0:02:42]} 13. Nb1 {[%clk 0:02:33]}  O-O-O {[%clk 0:02:38]} 14. Nbd2 {[%clk 0:02:32]}  Ng4 {[%clk 0:02:37]} 15. g3 {[%clk 0:02:30]}  f6 {[%clk 0:02:37]} 16. O-O {[%clk 0:02:29]}  Rdg8 {[%clk 0:02:36]} 17. Rfe1 {[%clk 0:02:25]}  Rg7 {[%clk 0:02:30]} 18. b4 {[%clk 0:02:13]}  Rhg8 {[%clk 0:02:25]} 19. a4 {[%clk 0:02:12]}  Ne7 {[%clk 0:02:21]} 20. b5 {[%clk 0:02:11]}  a5 {[%clk 0:02:21]} 21. Nh2 {[%clk 0:01:55]}  Nxf2 {[%clk 0:02:13]} 22. Kxf2 {[%clk 0:01:55]}  Rxg3 {[%clk 0:02:13]} 23. Nhf3 {[%clk 0:01:33]}  Rg2+ {[%clk 0:02:11]} 24. Ke3 {[%clk 0:01:32]}  e5 {[%clk 0:02:06]} 25. fxe5 {[%clk 0:01:28]}  fxe5 {[%clk 0:02:01]} 26. dxe5 {[%clk 0:01:29]}  Bf5 {[%clk 0:02:00]} 27. Rg1 {[%clk 0:01:27]}  Bxd3 {[%clk 0:01:57]} 28. Kxd3 {[%clk 0:01:28]}  Nf5 {[%clk 0:01:57]} 29. Rxg2 {[%clk 0:01:26]}  Rxg2 {[%clk 0:01:56]} 30. Rg1 {[%clk 0:01:27]}  Rf2 {[%clk 0:01:57]} 31. Rg5 {[%clk 0:01:24]}  Ne7 {[%clk 0:01:50]} 32. Ke3 {[%clk 0:01:22]}  c5 {[%clk 0:01:47]} 33. Kxf2 {[%clk 0:01:22]} 1-0

[Event "November 21 Early 2023"]
[Site "https://www.chess.com"]
[Date "2023.11.21"]
[Round "8"]
[White "Samarth J Rao"]
[Black "Kornyukov, Alexey"]
[Result "1-0"]
[Board "170"]
[TimeControl "180+1"]
[WhiteFideId "46652370"]
[BlackFideId "4150457"]
[WhiteElo "1564"]
[BlackElo "2352"]
[WhiteTeam "IND"]
[BlackTeam "RUS"]
[WhiteClock "0:00:31"]
[BlackClock "0:00:20"]

1. e4 {[%clk 0:03:00]}  c5 {[%clk 0:02:54]} 2. Nc3 {[%clk 0:03:00]}  e6 {[%clk 0:02:54]} 3. g3 {[%clk 0:03:00]}  d5 {[%clk 0:02:54]} 4. exd5 {[%clk 0:03:00]}  exd5 {[%clk 0:02:54]} 5. Bg2 {[%clk 0:03:00]}  Nf6 {[%clk 0:02:54]} 6. Nge2 {[%clk 0:02:58]}  Nc6 {[%clk 0:02:55]} 7. d4 {[%clk 0:02:58]}  c4 {[%clk 0:02:54]} 8. Nf4 {[%clk 0:02:54]}  Bb4 {[%clk 0:02:51]} 9. O-O {[%clk 0:02:54]}  Bxc3 {[%clk 0:02:51]} 10. bxc3 {[%clk 0:02:55]}  O-O {[%clk 0:02:51]} 11. a4 {[%clk 0:02:51]}  Re8 {[%clk 0:02:46]} 12. Re1 {[%clk 0:02:49]}  Bg4 {[%clk 0:02:44]} 13. Rxe8+ {[%clk 0:02:37]}  Qxe8 {[%clk 0:02:43]} 14. Qf1 {[%clk 0:02:33]}  Rd8 {[%clk 0:02:40]} 15. Ba3 {[%clk 0:02:30]}  Bf5 {[%clk 0:02:36]} 16. Re1 {[%clk 0:02:27]}  Qd7 {[%clk 0:02:36]} 17. a5 {[%clk 0:01:52]}  Bxc2 {[%clk 0:02:29]} 18. a6 {[%clk 0:01:51]}  bxa6 {[%clk 0:02:27]} 19. Bc5 {[%clk 0:01:51]}  a5 {[%clk 0:02:22]} 20. Qe2 {[%clk 0:01:49]}  Bf5 {[%clk 0:02:15]} 21. Nxd5 {[%clk 0:01:37]}  Nxd5 {[%clk 0:02:01]} 22. Bxd5 {[%clk 0:01:37]}  h6 {[%clk 0:01:47]} 23. Bxc4 {[%clk 0:01:22]}  Bg4 {[%clk 0:01:31]} 24. Qa2 {[%clk 0:01:19]}  Bf3 {[%clk 0:01:28]} 25. Re3 {[%clk 0:01:11]}  Bd5 {[%clk 0:01:09]} 26. Bxd5 {[%clk 0:01:09]}  Qxd5 {[%clk 0:01:09]} 27. Qxd5 {[%clk 0:01:05]}  Rxd5 {[%clk 0:01:06]} 28. c4 {[%clk 0:01:03]}  Rd8 {[%clk 0:01:04]} 29. d5 {[%clk 0:01:02]}  Nb4 {[%clk 0:01:04]} 30. Bxa7 {[%clk 0:00:56]}  Rc8 {[%clk 0:01:00]} 31. d6 {[%clk 0:00:54]}  Nc6 {[%clk 0:00:44]} 32. d7 {[%clk 0:00:44]}  Rf8 {[%clk 0:00:20]} 33. Bc5 {[%clk 0:00:40]}  Rd8 {[%clk 0:00:16]} 34. Re8+ {[%clk 0:00:39]}  Kh7 {[%clk 0:00:14]} 35. Rxd8 {[%clk 0:00:38]}  Nxd8 {[%clk 0:00:15]} 36. Bb6 {[%clk 0:00:24]}  Nc6 {[%clk 0:00:14]} 37. Bxa5 {[%clk 0:00:24]}  Kg6 {[%clk 0:00:11]} 38. d8=Q {[%clk 0:00:23]}  Nxd8 {[%clk 0:00:11]} 39. Bxd8 {[%clk 0:00:24]}  Kf5 {[%clk 0:00:12]} 40. Bb6 {[%clk 0:00:25]}  Ke6 {[%clk 0:00:12]} 41. c5 {[%clk 0:00:26]}  Kd7 {[%clk 0:00:13]} 42. Kg2 {[%clk 0:00:27]}  Kc6 {[%clk 0:00:13]} 43. f3 {[%clk 0:00:27]}  Kd5 {[%clk 0:00:14]} 44. h3 {[%clk 0:00:28]}  Kc6 {[%clk 0:00:15]} 45. g4 {[%clk 0:00:29]}  Kd5 {[%clk 0:00:16]} 46. Kg3 {[%clk 0:00:30]}  Kc6 {[%clk 0:00:17]} 47. f4 {[%clk 0:00:31]}  Kd5 {[%clk 0:00:18]} 48. h4 {[%clk 0:00:32]}  Kc6 {[%clk 0:00:19]} 49. g5 {[%clk 0:00:31]}  Kd5 {[%clk 0:00:20]} 50. gxh6 {[%clk 0:00:31]}  Kc6 {[%clk 0:00:21]} 51. Kg4 {[%clk 0:00:31]}  Kd5 {[%clk 0:00:21]} 52. h7 {[%clk 0:00:32]}  Kc6 {[%clk 0:00:21]} 53. h8=Q {[%clk 0:00:31]}  Kd5 {[%clk 0:00:22]} 54. Qxg7 {[%clk 0:00:31]}  Kc6 {[%clk 0:00:20]} 55. Qxf7 {[%clk 0:00:31]} 1-0